[Event "Early-Titled-Tuesday-Blitz-October-17-2023"]
[Site "Chess.com"]
[Date "2023.10.17"]
[Round "4"]
[White "familijatop71"]
[Black "Niilo1"]
[Result "0-1"]
[WhiteElo "2118"]
[BlackElo "2303"]
[TimeControl "180+1"]
[EndTime "8:41:39 PDT"]
[Termination "Niilo1 won on time"]

1. e4 {[%clk 0:03:00.9]} 1... c5 {[%clk 0:02:59.3]} 2. c3 {[%clk 0:03:00.6]}
2... Nf6 {[%clk 0:02:57.8]} 3. e5 {[%clk 0:02:59.7]} 3... Nd5 {[%clk 0:02:58.2]}
4. Nf3 {[%clk 0:02:59.5]} 4... Nc6 {[%clk 0:02:55.5]} 5. d4 {[%clk 0:02:59.8]}
5... cxd4 {[%clk 0:02:55.1]} 6. Bc4 {[%clk 0:03:00.4]} 6... e6 {[%clk
0:02:53.9]} 7. cxd4 {[%clk 0:02:58.7]} 7... d6 {[%clk 0:02:52.8]} 8. O-O {[%clk
0:02:55]} 8... Nb6 {[%clk 0:02:39.3]} 9. Bd3 {[%clk 0:02:52.9]} 9... Be7 {[%clk
0:02:37.8]} 10. a3 {[%clk 0:02:51.5]} 10... dxe5 {[%clk 0:02:20.5]} 11. dxe5
{[%clk 0:02:51.3]} 11... Nd7 {[%clk 0:02:20.9]} 12. Qe2 {[%clk 0:02:44.1]} 12...
Nc5 {[%clk 0:02:14.4]} 13. Bb5 {[%clk 0:02:34.6]} 13... Bd7 {[%clk 0:02:13.7]}
14. Rd1 {[%clk 0:02:31.2]} 14... Nb3 {[%clk 0:02:07.9]} 15. Ra2 {[%clk
0:02:15.9]} 15... Nxc1 {[%clk 0:02:07.8]} 16. Rxc1 {[%clk 0:02:11.2]} 16... O-O
{[%clk 0:02:07.5]} 17. Rd1 {[%clk 0:02:02.2]} 17... Qc7 {[%clk 0:02:03.5]} 18.
Nc3 {[%clk 0:01:56.4]} 18... Rfd8 {[%clk 0:01:59.8]} 19. Bd3 {[%clk 0:01:50.8]}
19... Be8 {[%clk 0:01:53.8]} 20. Raa1 {[%clk 0:01:46.9]} 20... g6 {[%clk
0:01:51.9]} 21. Rac1 {[%clk 0:01:46.6]} 21... Qa5 {[%clk 0:01:41.1]} 22. h4
{[%clk 0:01:38.5]} 22... Nd4 {[%clk 0:01:25.8]} 23. Nxd4 {[%clk 0:01:34.7]}
23... Rxd4 {[%clk 0:01:26.7]} 24. h5 {[%clk 0:01:28.6]} 24... Rad8 {[%clk
0:01:21.6]} 25. hxg6 {[%clk 0:01:27.9]} 25... hxg6 {[%clk 0:01:21.5]} 26. Bc2
{[%clk 0:01:18.8]} 26... Rxd1+ {[%clk 0:01:18.3]} 27. Rxd1 {[%clk 0:01:19.7]}
27... Rxd1+ {[%clk 0:01:17.7]} 28. Nxd1 {[%clk 0:01:11.2]} 28... Bf8 {[%clk
0:01:12.3]} 29. Nc3 {[%clk 0:01:03.4]} 29... Bg7 {[%clk 0:01:10.4]} 30. f4
{[%clk 0:00:40.5]} 30... Qb6+ {[%clk 0:01:10]} 31. Kh2 {[%clk 0:00:37.5]} 31...
Qxb2 {[%clk 0:01:10.2]} 32. Ne4 {[%clk 0:00:38.2]} 32... Ba4 {[%clk 0:00:49.7]}
33. Qd3 {[%clk 0:00:23.4]} 33... Qxc2 {[%clk 0:00:35.8]} 34. Qd8+ {[%clk
0:00:23.3]} 34... Bf8 {[%clk 0:00:36.3]} 35. Nf6+ {[%clk 0:00:18]} 35... Kg7
{[%clk 0:00:36.8]} 36. Kg3 {[%clk 0:00:06.1]} 36... Qd1 {[%clk 0:00:27.8]} 37.
Qc7 {[%clk 0:00:02.6]} 37... Qd3+ {[%clk 0:00:27.5]} 38. Kh2 {[%clk 0:00:02.5]}
38... Qe3 {[%clk 0:00:20.1]} 39. g3 {[%clk 0:00:02.7]} 39... Qxa3 {[%clk
0:00:18.8]} 40. Qxb7 {[%clk 0:00:02.6]} 40... Qa2+ {[%clk 0:00:14.8]} 41. Kh3
{[%clk 0:00:02.3]} 41... Qc2 {[%clk 0:00:15.2]} 42. Qf3 {[%clk 0:00:02]} 42...
Qd1 {[%clk 0:00:14.1]} 0-1

[Event "Early-Titled-Tuesday-Blitz-October-17-2023"]
[Site "Chess.com"]
[Date "2023.10.17"]
[Round "4"]
[White "ajgreen"]
[Black "temiksmozg"]
[Result "0-1"]
[WhiteElo "2387"]
[BlackElo "2595"]
[TimeControl "180+1"]
[EndTime "8:41:43 PDT"]
[Termination "temiksmozg won on time"]

1. e4 {[%clk 0:03:00.9]} 1... c5 {[%clk 0:02:56.1]} 2. Nf3 {[%clk 0:03:01.2]}
2... d6 {[%clk 0:02:54.7]} 3. d4 {[%clk 0:03:01.9]} 3... cxd4 {[%clk 0:02:54.4]}
4. Nxd4 {[%clk 0:03:02.8]} 4... Nf6 {[%clk 0:02:54.8]} 5. Nc3 {[%clk 0:03:03.5]}
5... a6 {[%clk 0:02:54.7]} 6. Bg5 {[%clk 0:03:04.2]} 6... e5 {[%clk 0:02:50.2]}
7. Nf5 {[%clk 0:03:04]} 7... Bxf5 {[%clk 0:02:31.8]} 8. exf5 {[%clk 0:03:04.9]}
8... Nbd7 {[%clk 0:02:23.6]} 9. Qf3 {[%clk 0:02:59.9]} 9... Qb6 {[%clk
0:02:19.4]} 10. O-O-O {[%clk 0:02:58.5]} 10... Be7 {[%clk 0:02:15.3]} 11. Bd3
{[%clk 0:02:55.7]} 11... Rc8 {[%clk 0:02:13.1]} 12. Bxf6 {[%clk 0:02:47.1]}
12... Nxf6 {[%clk 0:02:12.5]} 13. Be4 {[%clk 0:02:43.1]} 13... Rc7 {[%clk
0:02:09]} 14. h4 {[%clk 0:02:39.8]} 14... h5 {[%clk 0:01:44]} 15. Nd5 {[%clk
0:02:21]} 15... Nxd5 {[%clk 0:01:43.4]} 16. Rxd5 {[%clk 0:02:13.8]} 16... Qb4
{[%clk 0:01:25]} 17. Kb1 {[%clk 0:01:50]} 17... b5 {[%clk 0:01:11.6]} 18. g3
{[%clk 0:01:47.4]} 18... Rh6 {[%clk 0:00:57.6]} 19. Rhd1 {[%clk 0:01:46.9]}
19... Kf8 {[%clk 0:00:54.2]} 20. R5d2 {[%clk 0:01:13]} 20... Qc5 {[%clk
0:00:43.3]} 21. Bd5 {[%clk 0:01:09.1]} 21... a5 {[%clk 0:00:38.4]} 22. Qe4
{[%clk 0:00:56.5]} 22... b4 {[%clk 0:00:24.2]} 23. Bb3 {[%clk 0:00:54.3]} 23...
Kg8 {[%clk 0:00:21.3]} 24. f3 {[%clk 0:00:44.4]} 24... Qc6 {[%clk 0:00:18.6]}
25. Qxc6 {[%clk 0:00:36.9]} 25... Rxc6 {[%clk 0:00:19.5]} 26. Rd5 {[%clk
0:00:36.5]} 26... Ra6 {[%clk 0:00:19.2]} 27. Ba4 {[%clk 0:00:32.8]} 27... Rf6
{[%clk 0:00:16]} 28. g4 {[%clk 0:00:30.7]} 28... hxg4 {[%clk 0:00:15]} 29. fxg4
{[%clk 0:00:31.6]} 29... Rh6 {[%clk 0:00:15.4]} 30. h5 {[%clk 0:00:31]} 30...
Bg5 {[%clk 0:00:14.9]} 31. Rb5 {[%clk 0:00:25.9]} 31... Be3 {[%clk 0:00:10.9]}
32. Rdd5 {[%clk 0:00:19.2]} 32... Bc5 {[%clk 0:00:10.1]} 33. Rb7 {[%clk
0:00:13.5]} 33... Ra8 {[%clk 0:00:05.2]} 34. a3 {[%clk 0:00:10.8]} 34... bxa3
{[%clk 0:00:05.1]} 35. bxa3 {[%clk 0:00:11.1]} 35... Bxa3 {[%clk 0:00:06]} 36.
Ka2 {[%clk 0:00:10.8]} 36... Bc5 {[%clk 0:00:05.3]} 37. Bc6 {[%clk 0:00:06.1]}
37... Rf8 {[%clk 0:00:05.6]} 38. Rd3 {[%clk 0:00:05.4]} 38... g6 {[%clk
0:00:05.5]} 39. hxg6 {[%clk 0:00:02.2]} 39... fxg6 {[%clk 0:00:06.4]} 40. Bd5+
{[%clk 0:00:02.4]} 40... Kh8 {[%clk 0:00:06.2]} 41. fxg6 {[%clk 0:00:01.3]}
41... Rg8 {[%clk 0:00:04.3]} 0-1

[Event "Early-Titled-Tuesday-Blitz-October-17-2023"]
[Site "Chess.com"]
[Date "2023.10.17"]
[Round "4"]
[White "Mykola-Bortnyk"]
[Black "ActorXu"]
[Result "1/2-1/2"]
[WhiteElo "2970"]
[BlackElo "2787"]
[TimeControl "180+1"]
[EndTime "8:41:47 PDT"]
[Termination "Game drawn - insufficient material"]

1. e4 {[%clk 0:03:00.1]} 1... e5 {[%clk 0:03:00.7]} 2. Nf3 {[%clk 0:02:59.6]}
2... Nf6 {[%clk 0:03:01.3]} 3. Nxe5 {[%clk 0:03:00.3]} 3... d6 {[%clk
0:03:01.9]} 4. Nxf7 {[%clk 0:03:01]} 4... Kxf7 {[%clk 0:03:01.8]} 5. d4 {[%clk
0:03:01.7]} 5... Be7 {[%clk 0:02:50.5]} 6. Bc4+ {[%clk 0:02:56.6]} 6... Be6
{[%clk 0:02:48.7]} 7. d5 {[%clk 0:02:45.1]} 7... Bc8 {[%clk 0:02:15.8]} 8. e5
{[%clk 0:02:42.8]} 8... dxe5 {[%clk 0:02:16]} 9. d6+ {[%clk 0:02:43.5]} 9... Be6
{[%clk 0:02:16.3]} 10. Bxe6+ {[%clk 0:02:42.2]} 10... Kxe6 {[%clk 0:02:16.7]}
11. dxe7 {[%clk 0:02:43]} 11... Qxd1+ {[%clk 0:02:11.7]} 12. Kxd1 {[%clk
0:02:43.9]} 12... Nc6 {[%clk 0:02:11.8]} 13. c3 {[%clk 0:02:40.7]} 13... Kxe7
{[%clk 0:02:11.4]} 14. Be3 {[%clk 0:02:29.9]} 14... Rad8+ {[%clk 0:02:04.8]} 15.
Nd2 {[%clk 0:02:27.8]} 15... Ke6 {[%clk 0:01:59.4]} 16. Kc2 {[%clk 0:02:23.5]}
16... Rd7 {[%clk 0:01:58.6]} 17. Rhe1 {[%clk 0:02:17.1]} 17... h6 {[%clk
0:01:52.4]} 18. Re2 {[%clk 0:02:16.2]} 18... Kf7 {[%clk 0:01:48.1]} 19. Rae1
{[%clk 0:02:13.6]} 19... Re8 {[%clk 0:01:48.6]} 20. f3 {[%clk 0:02:12.3]} 20...
Nd4+ {[%clk 0:01:37.1]} 21. Bxd4 {[%clk 0:01:59.2]} 21... exd4 {[%clk 0:01:38]}
22. Rxe8 {[%clk 0:01:59.4]} 22... Nxe8 {[%clk 0:01:37]} 23. Nc4 {[%clk
0:01:57.6]} 23... Kf8 {[%clk 0:01:16.2]} 24. Rd1 {[%clk 0:01:50.3]} 24... c5
{[%clk 0:01:16.2]} 25. cxd4 {[%clk 0:01:46.4]} 25... cxd4 {[%clk 0:01:16.2]} 26.
Kd3 {[%clk 0:01:45.5]} 26... Nc7 {[%clk 0:01:12.9]} 27. Ne5 {[%clk 0:01:41.8]}
27... Rd6 {[%clk 0:01:11.4]} 28. Rc1 {[%clk 0:01:32.2]} 28... Ne6 {[%clk
0:01:10.1]} 29. g3 {[%clk 0:01:32.5]} 29... b6 {[%clk 0:01:08.2]} 30. b4 {[%clk
0:01:32.3]} 30... a5 {[%clk 0:01:04.3]} 31. bxa5 {[%clk 0:01:29.7]} 31... bxa5
{[%clk 0:01:04.3]} 32. Rc6 {[%clk 0:01:21.8]} 32... Ke7 {[%clk 0:00:53.5]} 33.
Rxd6 {[%clk 0:01:21.9]} 33... Kxd6 {[%clk 0:00:53.7]} 34. Nc4+ {[%clk
0:01:22.8]} 34... Kd5 {[%clk 0:00:53.5]} 35. Nxa5 {[%clk 0:01:23.6]} 35... Nc5+
{[%clk 0:00:54]} 36. Kd2 {[%clk 0:01:23.8]} 36... g5 {[%clk 0:00:47.3]} 37. Nb3
{[%clk 0:01:22.1]} 37... Nd7 {[%clk 0:00:45.7]} 38. f4 {[%clk 0:01:13.3]} 38...
gxf4 {[%clk 0:00:34]} 39. gxf4 {[%clk 0:01:13.8]} 39... Ke4 {[%clk 0:00:34.8]}
40. a4 {[%clk 0:01:14.5]} 40... Kxf4 {[%clk 0:00:30.5]} 41. a5 {[%clk
0:01:14.5]} 41... Ke4 {[%clk 0:00:31.1]} 42. a6 {[%clk 0:01:05.7]} 42... Nb6
{[%clk 0:00:30.4]} 43. h4 {[%clk 0:00:56.9]} 43... h5 {[%clk 0:00:22.6]} 44. Ke2
{[%clk 0:00:53.4]} 44... Nc8 {[%clk 0:00:18.5]} 45. Nc5+ {[%clk 0:00:43.8]}
45... Kd5 {[%clk 0:00:18.3]} 46. Nd7 {[%clk 0:00:44.4]} 46... Kc6 {[%clk
0:00:15.6]} 47. Nf6 {[%clk 0:00:44.3]} 47... Ne7 {[%clk 0:00:14.5]} 48. Kd3
{[%clk 0:00:28.8]} 48... Nf5 {[%clk 0:00:10.6]} 49. Nxh5 {[%clk 0:00:19.6]}
49... Kb6 {[%clk 0:00:08.8]} 50. Ng7 {[%clk 0:00:17.5]} 50... Nxh4 {[%clk
0:00:08.3]} 51. Kxd4 {[%clk 0:00:17.8]} 51... Nf5+ {[%clk 0:00:08]} 52. Nxf5
{[%clk 0:00:17.8]} 52... Kxa6 {[%clk 0:00:08.7]} 1/2-1/2

[Event "Early-Titled-Tuesday-Blitz-October-17-2023"]
[Site "Chess.com"]
[Date "2023.10.17"]
[Round "4"]
[White "maracayo"]
[Black "chess_blitz00"]
[Result "0-1"]
[WhiteElo "2366"]
[BlackElo "2559"]
[TimeControl "180+1"]
[EndTime "8:41:47 PDT"]
[Termination "chess_blitz00 won on time"]

1. e4 {[%clk 0:03:00.9]} 1... d6 {[%clk 0:02:58.7]} 2. Nf3 {[%clk 0:03:00.5]}
2... Nf6 {[%clk 0:02:57.2]} 3. d3 {[%clk 0:03:00]} 3... b6 {[%clk 0:02:55.6]} 4.
Nbd2 {[%clk 0:03:00.2]} 4... Bb7 {[%clk 0:02:56.2]} 5. Be2 {[%clk 0:03:00.4]}
5... c5 {[%clk 0:02:56.7]} 6. O-O {[%clk 0:03:00.5]} 6... e6 {[%clk 0:02:57]} 7.
c3 {[%clk 0:03:00.8]} 7... Qc7 {[%clk 0:02:56.8]} 8. Re1 {[%clk 0:03:01.2]} 8...
Nbd7 {[%clk 0:02:55.6]} 9. a4 {[%clk 0:02:59]} 9... a6 {[%clk 0:02:55.3]} 10.
Nc4 {[%clk 0:02:57.4]} 10... Be7 {[%clk 0:02:50.6]} 11. Bf4 {[%clk 0:02:56.2]}
11... e5 {[%clk 0:02:50.1]} 12. Bg5 {[%clk 0:02:55.9]} 12... O-O {[%clk
0:02:41.1]} 13. Bf1 {[%clk 0:02:49.3]} 13... b5 {[%clk 0:02:40.7]} 14. Ne3
{[%clk 0:02:45.8]} 14... Rfe8 {[%clk 0:02:34.2]} 15. Nf5 {[%clk 0:02:43.8]}
15... Bf8 {[%clk 0:02:34.1]} 16. h3 {[%clk 0:02:43.1]} 16... h6 {[%clk
0:02:20.8]} 17. Bh4 {[%clk 0:02:33.3]} 17... g6 {[%clk 0:02:20.7]} 18. Ne3
{[%clk 0:02:26.4]} 18... Bg7 {[%clk 0:02:20.6]} 19. Nd2 {[%clk 0:02:03.4]} 19...
d5 {[%clk 0:02:12.8]} 20. axb5 {[%clk 0:01:59.4]} 20... axb5 {[%clk 0:02:12.3]}
21. Rxa8 {[%clk 0:02:00.3]} 21... Rxa8 {[%clk 0:02:12.6]} 22. exd5 {[%clk
0:01:46.2]} 22... Nxd5 {[%clk 0:02:13.5]} 23. Bg3 {[%clk 0:01:30.3]} 23... Kh7
{[%clk 0:01:54]} 24. Qb3 {[%clk 0:01:25.6]} 24... Nxe3 {[%clk 0:01:44.7]} 25.
Rxe3 {[%clk 0:01:01.5]} 25... f5 {[%clk 0:01:32.4]} 26. Qf7 {[%clk 0:00:19.4]}
26... Rf8 {[%clk 0:01:20.5]} 27. Bxe5 {[%clk 0:00:18.5]} 27... Rxf7 {[%clk
0:00:54.8]} 28. Bxc7 {[%clk 0:00:17.7]} 28... Nf6 {[%clk 0:00:51.2]} 29. Be5
{[%clk 0:00:15]} 29... Nd5 {[%clk 0:00:51]} 30. Re1 {[%clk 0:00:15.2]} 30... Re7
{[%clk 0:00:48.2]} 31. Nf3 {[%clk 0:00:15.5]} 31... Nb6 {[%clk 0:00:37.9]} 32.
Bd6 {[%clk 0:00:14.6]} 32... Rxe1 {[%clk 0:00:36.3]} 33. Nxe1 {[%clk 0:00:15.5]}
33... Na4 {[%clk 0:00:35.9]} 34. b3 {[%clk 0:00:13.4]} 34... Nxc3 {[%clk
0:00:21.5]} 35. Bxc5 {[%clk 0:00:13.6]} 35... Bd5 {[%clk 0:00:20.6]} 36. d4
{[%clk 0:00:12.9]} 36... Bxb3 {[%clk 0:00:20.2]} 37. Nd3 {[%clk 0:00:10.8]}
37... Bc4 {[%clk 0:00:19.7]} 38. Nb4 {[%clk 0:00:08.9]} 38... Bf6 {[%clk
0:00:04.6]} 39. Bxc4 {[%clk 0:00:07.1]} 39... bxc4 {[%clk 0:00:05.5]} 40. d5
{[%clk 0:00:06.4]} 40... Ne4 {[%clk 0:00:05]} 41. Be3 {[%clk 0:00:04.5]} 41...
Be7 {[%clk 0:00:04.6]} 42. Nc6 {[%clk 0:00:03.7]} 42... Bd6 {[%clk 0:00:04.6]}
43. f3 {[%clk 0:00:04]} 43... Nf6 {[%clk 0:00:04]} 0-1

[Event "Early-Titled-Tuesday-Blitz-October-17-2023"]
[Site "Chess.com"]
[Date "2023.10.17"]
[Round "4"]
[White "SanchezKelvin"]
[Black "Witik"]
[Result "0-1"]
[WhiteElo "2570"]
[BlackElo "2809"]
[TimeControl "180+1"]
[EndTime "8:41:48 PDT"]
[Termination "Witik won by checkmate"]

1. e4 {[%clk 0:03:00.9]} 1... c5 {[%clk 0:02:55.8]} 2. Nf3 {[%clk 0:03:01.1]}
2... d6 {[%clk 0:02:52.3]} 3. d4 {[%clk 0:03:01.6]} 3... cxd4 {[%clk 0:02:53.2]}
4. Nxd4 {[%clk 0:03:01.6]} 4... Nf6 {[%clk 0:02:53.8]} 5. Nc3 {[%clk 0:03:01.3]}
5... a6 {[%clk 0:02:53.9]} 6. Bg5 {[%clk 0:03:01.2]} 6... e6 {[%clk 0:02:53.6]}
7. f4 {[%clk 0:03:01.2]} 7... Be7 {[%clk 0:02:53.4]} 8. Qf3 {[%clk 0:03:00.5]}
8... Qc7 {[%clk 0:02:53.1]} 9. O-O-O {[%clk 0:03:00.6]} 9... Nbd7 {[%clk
0:02:52.8]} 10. g4 {[%clk 0:03:00.5]} 10... b5 {[%clk 0:02:53]} 11. a3 {[%clk
0:02:59.6]} 11... Bb7 {[%clk 0:02:15.1]} 12. Bxf6 {[%clk 0:02:42.1]} 12... Nxf6
{[%clk 0:02:06.6]} 13. g5 {[%clk 0:02:41.9]} 13... Nd7 {[%clk 0:02:05.8]} 14. h4
{[%clk 0:02:40.4]} 14... b4 {[%clk 0:01:11.3]} 15. axb4 {[%clk 0:02:34.6]} 15...
d5 {[%clk 0:01:11.6]} 16. exd5 {[%clk 0:02:11.7]} 16... Bxb4 {[%clk 0:01:11.4]}
17. Bg2 {[%clk 0:02:11.8]} 17... O-O {[%clk 0:00:38.2]} 18. Nde2 {[%clk
0:01:56.8]} 18... Nb6 {[%clk 0:00:33]} 19. f5 {[%clk 0:01:36.8]} 19... exf5
{[%clk 0:00:18.7]} 20. Qxf5 {[%clk 0:01:24.7]} 20... Nc4 {[%clk 0:00:18.9]} 21.
Be4 {[%clk 0:01:03.2]} 21... g6 {[%clk 0:00:18.7]} 22. Qf4 {[%clk 0:01:02.6]}
22... Qa5 {[%clk 0:00:18.5]} 23. Nb1 {[%clk 0:00:33.1]} 23... Qa1 {[%clk
0:00:17.7]} 24. Qf6 {[%clk 0:00:33.2]} 24... Rae8 {[%clk 0:00:11.2]} 25. Ng3
{[%clk 0:00:29.8]} 25... Re5 {[%clk 0:00:09.2]} 26. Rd4 {[%clk 0:00:15.4]} 26...
Qxb2+ {[%clk 0:00:08.2]} 27. Kd1 {[%clk 0:00:16]} 27... Qxd4+ {[%clk 0:00:08.2]}
28. Bd3 {[%clk 0:00:16.5]} 28... Ne3+ {[%clk 0:00:05.8]} 29. Kc1 {[%clk
0:00:16.4]} 29... Nxd5 {[%clk 0:00:05.7]} 30. Qf1 {[%clk 0:00:13]} 30... Ne3
{[%clk 0:00:04.3]} 31. Qf2 {[%clk 0:00:13.1]} 31... Nxc2 {[%clk 0:00:04.1]} 32.
Qxd4 {[%clk 0:00:12.3]} 32... Nxd4 {[%clk 0:00:04.3]} 33. Rf1 {[%clk 0:00:13.2]}
33... Rc8+ {[%clk 0:00:04.4]} 34. Kb2 {[%clk 0:00:13]} 34... Ne6 {[%clk
0:00:04.3]} 35. Na3 {[%clk 0:00:10.9]} 35... Bxa3+ {[%clk 0:00:04.5]} 36. Kxa3
{[%clk 0:00:11.8]} 36... Rc3+ {[%clk 0:00:05.1]} 37. Kb4 {[%clk 0:00:12.1]}
37... Rxd3 {[%clk 0:00:06]} 38. Ne2 {[%clk 0:00:11.7]} 38... Rxe2 {[%clk
0:00:06.1]} 39. Rc1 {[%clk 0:00:11.4]} 39... Rb2+ {[%clk 0:00:06.1]} 40. Ka5
{[%clk 0:00:11.1]} 40... Rdb3 {[%clk 0:00:05.3]} 41. Ka4 {[%clk 0:00:09.8]}
41... Rb4+ {[%clk 0:00:04.9]} 42. Ka3 {[%clk 0:00:09.9]} 42... R2b3+ {[%clk
0:00:05]} 43. Ka2 {[%clk 0:00:09.8]} 43... Bd5 {[%clk 0:00:05.7]} 44. Rc8+
{[%clk 0:00:07.8]} 44... Kg7 {[%clk 0:00:05.9]} 45. h5 {[%clk 0:00:05.7]} 45...
Ra4# {[%clk 0:00:06]} 0-1

[Event "Early-Titled-Tuesday-Blitz-October-17-2023"]
[Site "Chess.com"]
[Date "2023.10.17"]
[Round "4"]
[White "dontcatchmeifyoucant"]
[Black "KorolDimitriy75"]
[Result "0-1"]
[WhiteElo "2189"]
[BlackElo "2412"]
[TimeControl "180+1"]
[EndTime "8:41:48 PDT"]
[Termination "KorolDimitriy75 won by resignation"]

1. e4 {[%clk 0:02:56.8]} 1... c5 {[%clk 0:03:00.2]} 2. Nf3 {[%clk 0:02:56.8]}
2... d6 {[%clk 0:03:00.6]} 3. d4 {[%clk 0:02:56.9]} 3... cxd4 {[%clk 0:03:01.5]}
4. Nxd4 {[%clk 0:02:57.7]} 4... Nf6 {[%clk 0:03:02.1]} 5. f3 {[%clk 0:02:57.1]}
5... g6 {[%clk 0:03:03]} 6. c4 {[%clk 0:02:57]} 6... Bg7 {[%clk 0:03:03.2]} 7.
Nc3 {[%clk 0:02:57.7]} 7... Nc6 {[%clk 0:03:02.1]} 8. Be3 {[%clk 0:02:58.2]}
8... O-O {[%clk 0:03:02]} 9. Qd2 {[%clk 0:02:53.2]} 9... Bd7 {[%clk 0:02:59.5]}
10. Be2 {[%clk 0:02:53.2]} 10... Nxd4 {[%clk 0:02:56]} 11. Bxd4 {[%clk
0:02:53.6]} 11... a5 {[%clk 0:02:56.3]} 12. O-O {[%clk 0:02:49]} 12... Bc6
{[%clk 0:02:55.5]} 13. Rab1 {[%clk 0:02:43.4]} 13... Nd7 {[%clk 0:02:55.5]} 14.
Bf2 {[%clk 0:02:40.9]} 14... Nc5 {[%clk 0:02:50.3]} 15. b3 {[%clk 0:02:39]}
15... Qc7 {[%clk 0:02:10.7]} 16. Rfc1 {[%clk 0:02:28]} 16... Rfc8 {[%clk
0:02:09.3]} 17. Nd5 {[%clk 0:02:19.6]} 17... Bxd5 {[%clk 0:02:08.9]} 18. cxd5
{[%clk 0:02:14.5]} 18... Qb6 {[%clk 0:01:18.2]} 19. Bc4 {[%clk 0:01:52.4]} 19...
Qb4 {[%clk 0:01:15.4]} 20. Qe2 {[%clk 0:01:46.4]} 20... a4 {[%clk 0:01:02.1]}
21. Be1 {[%clk 0:01:26.6]} 21... Qb6 {[%clk 0:00:54.8]} 22. Kf1 {[%clk
0:01:26.2]} 22... axb3 {[%clk 0:00:46.2]} 23. axb3 {[%clk 0:01:25]} 23... Qa7
{[%clk 0:00:29.3]} 24. b4 {[%clk 0:01:17.4]} 24... Nd7 {[%clk 0:00:27.4]} 25.
Bb3 {[%clk 0:01:09.4]} 25... h5 {[%clk 0:00:24.2]} 26. Bd2 {[%clk 0:00:54.7]}
26... Qa3 {[%clk 0:00:22.6]} 27. Qe3 {[%clk 0:00:45]} 27... Bf6 {[%clk
0:00:17.9]} 28. f4 {[%clk 0:00:42.2]} 28... Rxc1+ {[%clk 0:00:14.1]} 29. Rxc1
{[%clk 0:00:40.8]} 29... Qb2 {[%clk 0:00:14.1]} 30. Bc4 {[%clk 0:00:28.8]} 30...
Ra1 {[%clk 0:00:13.1]} 31. Rxa1 {[%clk 0:00:25.3]} 31... Qxa1+ {[%clk 0:00:14]}
32. Ke2 {[%clk 0:00:20.3]} 32... Qh1 {[%clk 0:00:11.5]} 33. Qg3 {[%clk
0:00:19.4]} 33... Qb1 {[%clk 0:00:10.6]} 34. Bd3 {[%clk 0:00:17.7]} 34... Qb2
{[%clk 0:00:09.6]} 35. Qe3 {[%clk 0:00:16]} 35... Bc3 {[%clk 0:00:08.9]} 36. h3
{[%clk 0:00:15.7]} 36... Bxb4 {[%clk 0:00:08.9]} 37. g4 {[%clk 0:00:14.7]} 37...
hxg4 {[%clk 0:00:08.4]} 38. hxg4 {[%clk 0:00:15.6]} 38... Nc5 {[%clk 0:00:08.5]}
39. e5 {[%clk 0:00:10.7]} 39... Nxd3 {[%clk 0:00:07.9]} 40. Qxd3 {[%clk
0:00:10.3]} 40... g5 {[%clk 0:00:06.2]} 41. exd6 {[%clk 0:00:08.7]} 41... exd6
{[%clk 0:00:05.9]} 42. fxg5 {[%clk 0:00:08.7]} 42... Qxd2+ {[%clk 0:00:05.9]}
43. Qxd2 {[%clk 0:00:09.2]} 43... Bxd2 {[%clk 0:00:06.8]} 44. Kxd2 {[%clk
0:00:10]} 44... Kg7 {[%clk 0:00:07.1]} 45. Kc3 {[%clk 0:00:10.1]} 45... Kg6
{[%clk 0:00:08]} 46. Kb4 {[%clk 0:00:11]} 46... Kxg5 {[%clk 0:00:08.4]} 47. Kb5
{[%clk 0:00:11.9]} 47... Kxg4 {[%clk 0:00:07.8]} 48. Kb6 {[%clk 0:00:12.8]}
48... Kf4 {[%clk 0:00:08]} 49. Kxb7 {[%clk 0:00:13.5]} 49... Ke5 {[%clk
0:00:08.9]} 50. Kc6 {[%clk 0:00:14.2]} 50... f5 {[%clk 0:00:09.7]} 0-1

[Event "Early-Titled-Tuesday-Blitz-October-17-2023"]
[Site "Chess.com"]
[Date "2023.10.17"]
[Round "4"]
[White "mishanick"]
[Black "WPWPWP-2015"]
[Result "1-0"]
[WhiteElo "3011"]
[BlackElo "2552"]
[TimeControl "180+1"]
[EndTime "8:41:49 PDT"]
[Termination "mishanick won on time"]

1. d4 {[%clk 0:03:00.9]} 1... Nf6 {[%clk 0:02:59.3]} 2. c4 {[%clk 0:03:01.4]}
2... e6 {[%clk 0:02:58.7]} 3. Nc3 {[%clk 0:03:01.9]} 3... Bb4 {[%clk 0:02:57.3]}
4. e3 {[%clk 0:03:02.4]} 4... O-O {[%clk 0:02:57.2]} 5. Bd3 {[%clk 0:03:01.3]}
5... d5 {[%clk 0:02:56.9]} 6. a3 {[%clk 0:03:01.7]} 6... Bd6 {[%clk 0:02:55.8]}
7. Nf3 {[%clk 0:03:01.6]} 7... b6 {[%clk 0:02:55.3]} 8. O-O {[%clk 0:03:01.2]}
8... Bb7 {[%clk 0:02:55.3]} 9. cxd5 {[%clk 0:03:01.4]} 9... exd5 {[%clk
0:02:53.9]} 10. b4 {[%clk 0:03:01.9]} 10... Re8 {[%clk 0:02:53.3]} 11. Qc2
{[%clk 0:03:01.2]} 11... h6 {[%clk 0:02:50.9]} 12. Bb2 {[%clk 0:02:59.2]} 12...
a6 {[%clk 0:02:50.1]} 13. Ne5 {[%clk 0:02:54]} 13... Bxe5 {[%clk 0:02:44.6]} 14.
dxe5 {[%clk 0:02:54.4]} 14... Rxe5 {[%clk 0:02:44.1]} 15. Nb5 {[%clk 0:02:51.4]}
15... Re7 {[%clk 0:02:29.4]} 16. Nd4 {[%clk 0:02:50.4]} 16... Bc8 {[%clk
0:02:18.3]} 17. Rac1 {[%clk 0:02:46.5]} 17... Ra7 {[%clk 0:02:11.4]} 18. h3
{[%clk 0:02:43.9]} 18... Be6 {[%clk 0:01:56.4]} 19. f4 {[%clk 0:02:33.5]} 19...
Bc8 {[%clk 0:01:54]} 20. Qf2 {[%clk 0:02:20.9]} 20... Ne4 {[%clk 0:01:50.2]} 21.
Bxe4 {[%clk 0:02:17.1]} 21... Rxe4 {[%clk 0:01:45.2]} 22. Qg3 {[%clk 0:02:17.7]}
22... f6 {[%clk 0:01:44]} 23. Rfd1 {[%clk 0:02:17.7]} 23... Qe7 {[%clk
0:01:35.5]} 24. f5 {[%clk 0:02:07.9]} 24... c5 {[%clk 0:01:31.7]} 25. Qxb8
{[%clk 0:02:02.6]} 25... Qc7 {[%clk 0:01:22.8]} 26. Qxc7 {[%clk 0:01:59.5]}
26... Rxc7 {[%clk 0:01:23.7]} 27. bxc5 {[%clk 0:02:00.1]} 27... bxc5 {[%clk
0:01:23.3]} 28. Ne6 {[%clk 0:01:59.2]} 28... Bxe6 {[%clk 0:01:19.1]} 29. fxe6
{[%clk 0:02:00.1]} 29... Rxe6 {[%clk 0:01:11.1]} 30. Rxd5 {[%clk 0:01:59.7]}
30... Rxe3 {[%clk 0:01:11]} 31. Rdxc5 {[%clk 0:01:59]} 31... Rb7 {[%clk
0:01:08.4]} 32. Bd4 {[%clk 0:01:57.3]} 32... Rxa3 {[%clk 0:01:07.8]} 33. R1c2
{[%clk 0:01:56.6]} 33... Rd3 {[%clk 0:01:05.8]} 34. Bf2 {[%clk 0:01:57.1]} 34...
Rb1+ {[%clk 0:01:04.2]} 35. Kh2 {[%clk 0:01:57.7]} 35... Rdd1 {[%clk 0:01:03.2]}
36. Rc7 {[%clk 0:01:56.9]} 36... Rh1+ {[%clk 0:01:00.8]} 37. Kg3 {[%clk
0:01:57.5]} 37... Rb3+ {[%clk 0:01:00.4]} 38. Kf4 {[%clk 0:01:58]} 38... Rf1
{[%clk 0:00:58.1]} 39. Ra7 {[%clk 0:01:56.9]} 39... Ra3 {[%clk 0:00:55.8]} 40.
Kg4 {[%clk 0:01:50.1]} 40... Kh7 {[%clk 0:00:49.5]} 41. h4 {[%clk 0:01:28.9]}
41... h5+ {[%clk 0:00:41.4]} 42. Kxh5 {[%clk 0:00:54.3]} 42... Ra4 {[%clk
0:00:41.1]} 43. g4 {[%clk 0:00:46.8]} 43... Rd1 {[%clk 0:00:30.9]} 44. Rcc7
{[%clk 0:00:34.8]} 44... Rd5+ {[%clk 0:00:20.2]} 45. g5 {[%clk 0:00:35.1]} 45...
fxg5 {[%clk 0:00:10]} 46. Rxg7+ {[%clk 0:00:33.4]} 46... Kh8 {[%clk 0:00:10.6]}
47. Rh7+ {[%clk 0:00:33.6]} 47... Kg8 {[%clk 0:00:05.2]} 48. hxg5 {[%clk
0:00:34.5]} 48... Ra2 {[%clk 0:00:03.4]} 49. Rag7+ {[%clk 0:00:26.4]} 49... Kf8
{[%clk 0:00:03.2]} 50. Kh6 {[%clk 0:00:26.7]} 1-0